[Event "13 Open de Quenza"]
[Site "Quenza, France"]
[Date "2024.07.07"]
[Round "1.10"]
[White "Pierrat, John"]
[Black "Relange, Eloi"]
[Result "0-1"]
[TimeControl "5min+3s/move"]
[WhiteElo "1607"]
[BlackElo "2440"]

1. d4 {[%clk 00:05:03]} {[%emt 00:00:02]} d6 {[%clk 00:05:03]} {[%emt
00:00:02]} 2. Nf3 {[%clk 00:05:03]} {[%emt 00:00:03]} Nf6 {[%clk 00:05:03]}
{[%emt 00:00:02]} 3. e3 {[%clk 00:04:57]} {[%emt 00:00:09]} g6 {[%clk
00:05:03]} {[%emt 00:00:03]} 4. c4 {[%clk 00:04:41]} {[%emt 00:00:18]} Bg7
{[%clk 00:05:03]} {[%emt 00:00:02]} 5. Nc3 {[%clk 00:04:41]} {[%emt 00:00:02]}
O-O {[%clk 00:05:03]} {[%emt 00:00:02]} 6. b4 {[%clk 00:04:29]} {[%emt
00:00:15]} c5 {[%clk 00:04:56]} {[%emt 00:00:10]} 7. a3 {[%clk 00:03:54]}
{[%emt 00:00:38]} cxd4 {[%clk 00:04:50]} {[%emt 00:00:10]} 8. Nxd4 {[%clk
00:03:51]} {[%emt 00:00:05]} d5 {[%clk 00:04:39]} {[%emt 00:00:15]} 9. Be2
{[%clk 00:03:42]} {[%emt 00:00:11]} dxc4 {[%clk 00:04:36]} {[%emt 00:00:06]} 10.
Bxc4 {[%clk 00:03:42]} {[%emt 00:00:02]} Qc7 {[%clk 00:04:02]} {[%emt
00:00:37]} 11. Qd3 {[%clk 00:03:25]} {[%emt 00:00:20]} Nbd7 {[%clk 00:03:59]}
{[%emt 00:00:07]} 12. Bb3 {[%clk 00:03:17]} {[%emt 00:00:10]} a6 {[%clk
00:03:38]} {[%emt 00:00:25]} 13. O-O {[%clk 00:03:16]} {[%emt 00:00:03]} e5
{[%clk 00:03:36]} {[%emt 00:00:05]} 14. Nde2 {[%clk 00:02:55]} {[%emt
00:00:25]} e4 {[%clk 00:03:36]} {[%emt 00:00:03]} 15. Qd2 {[%clk 00:02:41]}
{[%emt 00:00:16]} Ng4 {[%clk 00:03:35]} {[%emt 00:00:05]} 16. f3 {[%clk
00:02:25]} {[%emt 00:00:19]} Qxh2# {[%clk 00:03:33]} {[%emt 00:00:04]} 0-1

[Event "13 Open de Quenza"]
[Site "Quenza, France"]
[Date "2024.07.07"]
[Round "1.12"]
[White "Gil, Jean-Jacques"]
[Black "Yankelevich, Lev"]
[Result "0-1"]
[TimeControl "5min+3s/move"]
[WhiteElo "1624"]
[BlackElo "2416"]

1. d4 {[%clk 00:05:03]} Nf6 {[%clk 00:05:03]} {[%emt 00:00:02]} 2. e3 {[%clk
00:05:03]} {[%emt 00:00:03]} g6 {[%clk 00:05:03]} {[%emt 00:00:02]} 3. f4
{[%clk 00:05:03]} {[%emt 00:00:01]} Bg7 {[%clk 00:05:03]} 4. Nf3 {[%clk
00:05:03]} {[%emt 00:00:02]} O-O {[%clk 00:05:03]} {[%emt 00:00:02]} 5. Bd3
{[%clk 00:05:03]} {[%emt 00:00:01]} c5 {[%clk 00:05:03]} {[%emt 00:00:01]} 6.
c3 {[%clk 00:05:03]} d6 {[%clk 00:04:59]} {[%emt 00:00:07]} 7. O-O {[%clk
00:05:03]} {[%emt 00:00:02]} Nc6 {[%clk 00:04:59]} {[%emt 00:00:01]} 8. Nbd2
{[%clk 00:05:03]} {[%emt 00:00:03]} cxd4 {[%clk 00:04:53]} {[%emt 00:00:09]} 9.
exd4 {[%clk 00:05:03]} {[%emt 00:00:02]} e5 {[%clk 00:04:53]} {[%emt 00:00:02]}
10. d5 {[%clk 00:04:57]} {[%emt 00:00:10]} Nxd5 {[%clk 00:04:52]} {[%emt
00:00:04]} 11. fxe5 {[%clk 00:04:56]} {[%emt 00:00:04]} Ne3 {[%clk 00:04:52]}
{[%emt 00:00:03]} 0-1

[Event "13 Open de Quenza"]
[Site "Quenza, France"]
[Date "2024.07.07"]
[Round "2.1"]
[White "Sibille, Ettore"]
[Black "Anand, Viswanathan"]
[Result "0-1"]
[TimeControl "5min+3s/move"]
[WhiteElo "1904"]
[BlackElo "2751"]

1. e4 {[%clk 00:05:03]} c5 {[%clk 00:05:03]} 2. Nc3 {[%clk 00:05:03]} Nc6
{[%clk 00:05:03]} {[%emt 00:00:03]} 3. f4 {[%clk 00:05:03]} {[%emt 00:00:02]}
g6 {[%clk 00:05:03]} {[%emt 00:00:01]} 4. Nf3 {[%clk 00:05:03]} {[%emt
00:00:01]} Bg7 {[%clk 00:05:03]} 5. Bb5 {[%clk 00:05:02]} {[%emt 00:00:05]} Nd4
{[%clk 00:05:03]} {[%emt 00:00:03]} 6. O-O {[%clk 00:05:02]} {[%emt 00:00:03]}
Nxb5 {[%clk 00:05:01]} {[%emt 00:00:05]} 7. Nxb5 {[%emt 00:00:02]} a6 8. Nc3
{[%clk 00:05:02]} d6 {[%clk 00:05:01]} 9. d3 {[%clk 00:04:48]} {[%emt
00:00:17]} b5 {[%clk 00:05:01]} {[%emt 00:00:01]} 10. Kh1 {[%clk 00:04:48]}
{[%emt 00:00:02]} Nf6 {[%clk 00:05:01]} {[%emt 00:00:03]} 11. Qe1 {[%clk
00:04:42]} {[%emt 00:00:10]} Bb7 {[%clk 00:04:58]} {[%emt 00:00:06]} 12. Ne2
{[%clk 00:04:10]} {[%emt 00:00:34]} O-O {[%clk 00:04:53]} {[%emt 00:00:08]} 13.
Qh4 {[%clk 00:03:53]} {[%emt 00:00:21]} c4 {[%clk 00:04:34]} {[%emt 00:00:22]}
14. f5 {[%clk 00:03:18]} {[%emt 00:00:38]} cxd3 {[%clk 00:04:10]} {[%emt
00:00:28]} 15. cxd3 {[%clk 00:03:18]} Rc8 {[%clk 00:04:10]} 16. Bh6 {[%clk
00:03:03]} {[%emt 00:00:18]} e5 {[%clk 00:03:35]} {[%emt 00:00:38]} 17. Ng5
{[%clk 00:02:14]} {[%emt 00:00:51]} Nh5 {[%clk 00:03:20]} {[%emt 00:00:18]} 18.
Bxg7 {[%clk 00:01:51]} {[%emt 00:00:27]} Kxg7 {[%clk 00:03:20]} {[%emt
00:00:01]} 19. g4 {[%clk 00:01:45]} {[%emt 00:00:09]} h6 {[%clk 00:03:19]}
{[%emt 00:00:04]} 20. gxh5 {[%clk 00:01:40]} {[%emt 00:00:08]} Qxg5 {[%clk
00:03:19]} {[%emt 00:00:02]} 21. Qxg5 {[%clk 00:01:38]} {[%emt 00:00:05]} hxg5
{[%clk 00:03:19]} {[%emt 00:00:01]} 22. f6+ {[%clk 00:01:27]} {[%emt 00:00:14]}
Kh6 {[%clk 00:03:15]} {[%emt 00:00:07]} 23. Ng3 {[%clk 00:01:20]} {[%emt
00:00:10]} Rc5 {[%clk 00:02:59]} {[%emt 00:00:18]} 24. Rac1 {[%clk 00:01:08]}
{[%emt 00:00:15]} Bc8 {[%clk 00:02:59]} {[%emt 00:00:01]} 25. b4 {[%clk
00:01:01]} {[%emt 00:00:10]} Rxc1 {[%clk 00:02:59]} {[%emt 00:00:03]} 26. Rxc1
{[%clk 00:01:01]} gxh5 {[%clk 00:02:59]} {[%emt 00:00:01]} 27. Rc6 {[%clk
00:00:47]} {[%emt 00:00:17]} h4 {[%clk 00:02:59]} {[%emt 00:00:02]} 28. Ne2
{[%clk 00:00:42]} {[%emt 00:00:08]} Bg4 {[%clk 00:02:59]} {[%emt 00:00:03]} 29.
Nc3 {[%clk 00:00:41]} {[%emt 00:00:04]} Rc8 {[%clk 00:02:59]} 30. Rxc8 {[%clk
00:00:40]} {[%emt 00:00:04]} Bxc8 {[%clk 00:02:59]} {[%emt 00:00:01]} 31. Nd5
{[%clk 00:00:37]} {[%emt 00:00:06]} Be6 {[%clk 00:02:53]} {[%emt 00:00:09]} 32.
Nc7 {[%clk 00:00:37]} {[%emt 00:00:03]} Bxa2 {[%clk 00:02:53]} {[%emt
00:00:01]} 33. Nxa6 {[%clk 00:00:37]} {[%emt 00:00:01]} Bb1 {[%clk 00:02:53]}
{[%emt 00:00:03]} 34. Nc7 {[%clk 00:00:22]} {[%emt 00:00:18]} Bxd3 {[%clk
00:02:53]} 35. Ne8 {[%clk 00:00:22]} Bxe4+ {[%clk 00:02:53]} {[%emt 00:00:01]}
0-1

[Event "13 Open de Quenza"]
[Site "Quenza, France"]
[Date "2024.07.07"]
[Round "2.2"]
[White "Fressinet, Laurent"]
[Black "Cardi, Jean"]
[Result "1-0"]
[TimeControl "5min+3s/move"]
[WhiteElo "2625"]
[BlackElo "1922"]

1. d4 {[%clk 00:05:03]} {[%emt 00:13:33]} Nf6 {[%clk 00:05:03]} {[%emt
00:00:02]} 2. Nf3 {[%clk 00:05:03]} {[%emt 00:00:02]} c5 {[%clk 00:05:02]}
{[%emt 00:00:04]} 3. d5 {[%clk 00:05:03]} {[%emt 00:00:02]} e6 {[%clk
00:05:01]} {[%emt 00:00:04]} 4. Nc3 {[%clk 00:05:03]} {[%emt 00:00:01]} b5
{[%clk 00:05:00]} {[%emt 00:00:04]} 5. Bg5 {[%clk 00:05:00]} {[%emt 00:00:06]}
b4 {[%clk 00:04:35]} {[%emt 00:00:29]} 6. Ne4 {[%clk 00:05:00]} {[%emt
00:00:03]} h6 {[%clk 00:04:14]} {[%emt 00:00:24]} 7. Nxf6+ {[%clk 00:04:38]}
{[%emt 00:00:25]} gxf6 {[%clk 00:04:14]} {[%emt 00:00:02]} 8. Bh4 {[%clk
00:04:38]} a5 {[%clk 00:03:16]} {[%emt 00:01:03]} 9. e4 {[%clk 00:04:37]}
{[%emt 00:00:03]} Ba6 {[%clk 00:03:16]} {[%emt 00:00:02]} 10. Bxa6 {[%clk
00:04:19]} {[%emt 00:00:21]} Rxa6 {[%clk 00:03:04]} {[%emt 00:00:14]} 11. O-O
{[%clk 00:03:59]} {[%emt 00:00:22]} e5 {[%clk 00:02:42]} {[%emt 00:00:25]} 12.
Nxe5 {[%clk 00:03:54]} {[%emt 00:00:09]} Rg8 {[%clk 00:02:01]} {[%emt
00:00:44]} 13. Nc4 {[%clk 00:03:45]} {[%emt 00:00:11]} d6 {[%clk 00:01:42]}
{[%emt 00:00:21]} 14. Re1 {[%clk 00:03:30]} {[%emt 00:00:18]} Nd7 {[%clk
00:01:39]} {[%emt 00:00:06]} 15. f4 {[%clk 00:03:27]} {[%emt 00:00:07]} Be7
{[%clk 00:00:45]} {[%emt 00:00:57]} 16. Ne3 {[%clk 00:03:22]} {[%emt 00:00:07]}
Nf8 {[%clk 00:00:36]} {[%emt 00:00:13]} 17. Nf5 {[%clk 00:03:15]} {[%emt
00:00:10]} Ng6 {[%clk 00:00:36]} {[%emt 00:00:03]} 18. Bg3 {[%clk 00:03:15]}
{[%emt 00:00:03]} Ra7 {[%clk 00:00:13]} {[%emt 00:00:27]} 19. Nxh6 {[%clk
00:03:07]} {[%emt 00:00:10]} Rh8 {[%clk 00:00:13]} {[%emt 00:00:02]} 20. Nf5
{[%clk 00:03:07]} {[%emt 00:00:02]} Qd7 {[%clk 00:00:08]} {[%emt 00:00:09]} 21.
Qe2 {[%clk 00:03:04]} {[%emt 00:00:06]} Kd8 {[%clk 00:00:08]} {[%emt 00:00:04]}
22. a3 {[%clk 00:03:03]} {[%emt 00:00:04]} Kc8 {[%clk 00:00:06]} {[%emt
00:00:06]} 23. axb4 {[%clk 00:03:01]} {[%emt 00:00:04]} axb4 {[%clk 00:00:06]}
{[%emt 00:00:01]} 24. Ra6 {[%clk 00:02:54]} {[%emt 00:00:09]} Rd8 {[%clk
00:00:05]} {[%emt 00:00:05]} 25. Rea1 {[%clk 00:02:53]} {[%emt 00:00:03]} Rxa6
{[%clk 00:00:05]} {[%emt 00:00:03]} 26. Qxa6+ {[%clk 00:02:53]} {[%emt
00:00:03]} Qb7 {[%clk 00:00:05]} {[%emt 00:00:02]} 27. Qc6+ {[%clk 00:02:38]}
{[%emt 00:00:17]} Qxc6 {[%clk 00:00:05]} {[%emt 00:00:03]} 28. dxc6 {[%clk
00:02:38]} {[%emt 00:00:01]} Bf8 {[%clk 00:00:04]} {[%emt 00:00:04]} 29. Ra7
{[%clk 00:02:32]} {[%emt 00:00:09]} Re8 {[%emt 00:00:04]} 1-0

[Event "13 Open de Quenza"]
[Site "Quenza, France"]
[Date "2024.07.07"]
[Round "2.3"]
[White "Lalande, Jean-Louis"]
[Black "Bellahcene, Bilel"]
[Result "0-1"]
[TimeControl "5min+3s/move"]
[WhiteElo "1920"]
[BlackElo "2535"]

1. d4 {[%clk 00:05:03]} {[%emt 00:21:43]} Nf6 {[%clk 00:05:03]} {[%emt
00:00:02]} 2. Nf3 {[%clk 00:05:03]} e6 {[%clk 00:05:03]} {[%emt 00:00:02]} 3.
g3 {[%clk 00:05:03]} {[%emt 00:00:02]} d5 {[%clk 00:05:03]} 4. Bg2 {[%clk
00:05:03]} b5 {[%clk 00:05:03]} 5. Qd3 {[%clk 00:04:46]} {[%emt 00:00:23]} a6
{[%clk 00:05:01]} {[%emt 00:00:05]} 6. a4 {[%clk 00:04:45]} {[%emt 00:00:04]}
b4 {[%clk 00:05:01]} 7. Nbd2 {[%clk 00:04:42]} {[%emt 00:00:05]} a5 {[%clk
00:05:01]} {[%emt 00:00:01]} 8. Nb3 {[%clk 00:04:32]} {[%emt 00:00:13]} Nbd7
{[%clk 00:04:56]} {[%emt 00:00:07]} 9. Bf4 {[%clk 00:04:07]} {[%emt 00:00:28]}
Ba6 {[%clk 00:04:56]} {[%emt 00:00:02]} 10. Qd2 {[%clk 00:04:07]} {[%emt
00:00:02]} c5 {[%clk 00:04:56]} {[%emt 00:00:02]} 11. dxc5 {[%clk 00:03:44]}
{[%emt 00:00:26]} Nxc5 {[%clk 00:04:52]} {[%emt 00:00:07]} 12. Nbd4 {[%clk
00:03:40]} {[%emt 00:00:07]} Nce4 {[%clk 00:04:51]} {[%emt 00:00:04]} 13. Qd1
{[%clk 00:03:40]} Bc5 {[%clk 00:04:48]} {[%emt 00:00:07]} 14. O-O {[%clk
00:03:38]} {[%emt 00:00:06]} O-O {[%clk 00:04:48]} {[%emt 00:00:02]} 15. h3
{[%clk 00:02:59]} Qb6 {[%clk 00:04:47]} {[%emt 00:00:46]} 16. e3 {[%clk
00:02:47]} Bxf1 {[%clk 00:04:47]} {[%emt 00:00:18]} 17. Bxf1 {[%emt 00:00:05]}
Bd6 {[%clk 00:04:43]} {[%emt 00:00:05]} 18. Be5 {[%clk 00:02:39]} Rac8 {[%clk
00:04:43]} {[%emt 00:00:13]} 19. Bb5 {[%emt 00:00:15]} Qc7 {[%clk 00:04:40]}
{[%emt 00:00:01]} 20. Bxd6 {[%clk 00:02:30]} Nxd6 {[%clk 00:04:40]} {[%emt
00:00:06]} 21. Nc6 {[%clk 00:02:22]} Kh8 {[%clk 00:04:37]} {[%emt 00:00:17]} 22.
Rc1 {[%clk 00:02:10]} Nfe4 {[%clk 00:04:37]} {[%emt 00:00:18]} 23. Qd3 {[%emt
00:00:34]} Qb6 24. Nfd4 {[%clk 00:01:42]} {[%emt 00:00:03]} Nc5 {[%clk
00:04:30]} {[%emt 00:00:10]} 25. Qe2 {[%clk 00:01:36]} {[%emt 00:00:08]} Rc7
{[%clk 00:04:27]} {[%emt 00:00:08]} 26. c3 {[%clk 00:01:27]} {[%emt 00:00:11]}
bxc3 {[%clk 00:04:18]} {[%emt 00:00:12]} 27. Rxc3 {[%clk 00:01:19]} {[%emt
00:00:11]} Rfc8 {[%clk 00:04:18]} {[%emt 00:00:01]} 28. Ne5 {[%clk 00:01:19]}
{[%emt 00:00:02]} Nce4 {[%clk 00:04:18]} {[%emt 00:00:04]} 29. Rb3 {[%clk
00:00:52]} {[%emt 00:00:30]} Rc1+ {[%clk 00:04:10]} {[%emt 00:00:11]} 30. Kg2
{[%clk 00:00:52]} Nc5 {[%clk 00:04:10]} {[%emt 00:00:02]} 31. Rc3 {[%clk
00:00:50]} Rxc3 {[%clk 00:04:10]} {[%emt 00:00:07]} 32. bxc3 {[%clk 00:00:50]}
Nce4 {[%clk 00:04:05]} {[%emt 00:00:07]} 33. Bd7 {[%clk 00:00:30]} {[%emt
00:00:23]} Rf8 {[%clk 00:03:56]} {[%emt 00:00:12]} 34. f3 {[%clk 00:00:20]}
{[%emt 00:00:13]} Nxc3 {[%clk 00:03:56]} {[%emt 00:00:04]} 35. Qc2 {[%clk
00:00:19]} {[%emt 00:00:03]} Qb4 {[%clk 00:03:50]} {[%emt 00:00:10]} 36. Ndc6
{[%clk 00:00:19]} Qc5 {[%clk 00:03:49]} {[%emt 00:00:07]} 37. Ne7 {[%clk
00:00:18]} {[%emt 00:00:05]} Qxe3 {[%clk 00:03:44]} {[%emt 00:00:08]} 0-1

[Event "13 Open de Quenza"]
[Site "Quenza, France"]
[Date "2024.07.07"]
[Round "2.4"]
[White "Lagarde, Maxime"]
[Black "Lagun, Matthieu"]
[Result "1-0"]
[TimeControl "5min+3s/move"]
[WhiteElo "2608"]
[BlackElo "1917"]

1. e4 {[%clk 00:05:03]} {[%emt 00:11:59]} a6 {[%clk 00:05:03]} {[%emt
00:00:02]} 2. d4 {[%clk 00:04:47]} {[%emt 00:00:19]} b5 {[%clk 00:05:03]}
{[%emt 00:00:01]} 3. Bd3 {[%clk 00:04:46]} {[%emt 00:00:04]} Bb7 {[%clk
00:05:03]} {[%emt 00:00:01]} 4. Ne2 {[%clk 00:04:46]} {[%emt 00:00:02]} e6
{[%clk 00:05:03]} 5. O-O {[%clk 00:04:46]} {[%emt 00:00:03]} Ne7 {[%clk
00:05:03]} {[%emt 00:00:01]} 6. a4 {[%clk 00:04:45]} {[%emt 00:00:04]} bxa4
{[%clk 00:05:01]} {[%emt 00:00:06]} 7. c4 {[%clk 00:04:45]} {[%emt 00:00:03]}
Ng6 {[%clk 00:04:58]} {[%emt 00:00:06]} 8. Nbc3 {[%clk 00:04:41]} {[%emt
00:00:06]} Be7 {[%clk 00:04:58]} {[%emt 00:00:02]} 9. f4 {[%clk 00:04:33]}
{[%emt 00:00:11]} d6 {[%clk 00:04:28]} {[%emt 00:00:34]} 10. f5 {[%clk
00:04:29]} {[%emt 00:00:07]} Nf8 {[%clk 00:04:28]} {[%emt 00:00:01]} 11. fxe6
{[%clk 00:04:29]} {[%emt 00:00:04]} Nxe6 {[%clk 00:04:28]} {[%emt 00:00:01]} 12.
Be3 {[%clk 00:04:26]} {[%emt 00:00:06]} Nd7 {[%clk 00:04:26]} {[%emt 00:00:05]}
13. Ng3 {[%clk 00:04:20]} {[%emt 00:00:09]} Bg5 {[%clk 00:04:26]} {[%emt
00:00:02]} 14. Bf2 {[%clk 00:04:20]} {[%emt 00:00:02]} Nf4 {[%clk 00:04:25]}
{[%emt 00:00:03]} 15. Nd5 {[%clk 00:04:10]} {[%emt 00:00:13]} Nxd3 {[%clk
00:04:14]} {[%emt 00:00:14]} 16. Qxd3 {[%clk 00:04:10]} {[%emt 00:00:01]} O-O
{[%clk 00:04:14]} {[%emt 00:00:02]} 17. Rxa4 {[%clk 00:04:09]} {[%emt
00:00:04]} c6 {[%clk 00:04:08]} {[%emt 00:00:09]} 18. Ne3 {[%clk 00:04:07]}
{[%emt 00:00:05]} g6 {[%clk 00:04:07]} {[%emt 00:00:04]} 19. h3 {[%clk
00:03:47]} {[%emt 00:00:24]} Qe7 {[%clk 00:04:07]} {[%emt 00:00:01]} 20. Ng4
{[%clk 00:03:47]} {[%emt 00:00:03]} Rae8 {[%clk 00:03:53]} {[%emt 00:00:16]} 21.
Nh2 {[%clk 00:03:08]} {[%emt 00:00:42]} Nf6 {[%clk 00:03:53]} {[%emt 00:00:02]}
22. Nf3 {[%clk 00:02:56]} {[%emt 00:00:15]} Bh6 {[%clk 00:03:47]} {[%emt
00:00:09]} 23. e5 {[%clk 00:02:51]} {[%emt 00:00:09]} dxe5 {[%clk 00:03:45]}
{[%emt 00:00:04]} 24. dxe5 {[%clk 00:02:51]} {[%emt 00:00:02]} Nd7 {[%clk
00:03:39]} {[%emt 00:00:09]} 25. Ne4 {[%clk 00:02:22]} {[%emt 00:00:32]} Nxe5
{[%clk 00:03:38]} {[%emt 00:00:04]} 26. Nxe5 {[%clk 00:02:22]} {[%emt
00:00:02]} Qxe5 {[%clk 00:03:38]} {[%emt 00:00:02]} 27. Nd6 {[%clk 00:02:19]}
{[%emt 00:00:06]} Rd8 {[%clk 00:03:31]} {[%emt 00:00:10]} 28. c5 {[%clk
00:02:19]} {[%emt 00:00:02]} Bc8 {[%clk 00:03:15]} {[%emt 00:00:19]} 29. Re4
{[%clk 00:02:17]} {[%emt 00:00:05]} Qxb2 {[%clk 00:03:15]} {[%emt 00:00:02]} 30.
Bd4 {[%clk 00:02:13]} {[%emt 00:00:07]} Qb8 {[%clk 00:02:47]} {[%emt 00:00:31]}
31. Ba1 {[%clk 00:02:01]} {[%emt 00:00:15]} Be6 {[%clk 00:01:23]} {[%emt
00:01:27]} 32. Qc3 {[%clk 00:01:59]} {[%emt 00:00:05]} 1-0

[Event "13 Open de Quenza"]
[Site "Quenza, France"]
[Date "2024.07.07"]
[Round "2.5"]
[White "Ratier-Fontana, Loic"]
[Black "Fedorchuk, Sergey A."]
[Result "0-1"]
[TimeControl "5min+3s/move"]
[WhiteElo "1863"]
[BlackElo "2554"]

1. Nf3 {[%clk 00:05:03]} {[%emt 00:12:04]} Nf6 {[%clk 00:05:03]} {[%emt
00:00:02]} 2. d4 {[%clk 00:05:03]} {[%emt 00:00:02]} e6 {[%clk 00:05:03]}
{[%emt 00:00:02]} 3. Bf4 {[%clk 00:05:03]} {[%emt 00:00:03]} c5 {[%clk
00:05:02]} {[%emt 00:00:05]} 4. e3 {[%clk 00:05:03]} {[%emt 00:00:01]} Nd5
{[%clk 00:05:02]} {[%emt 00:00:02]} 5. Bg3 {[%clk 00:05:00]} {[%emt 00:00:07]}
Qb6 {[%clk 00:05:02]} {[%emt 00:00:01]} 6. b3 {[%clk 00:04:27]} {[%emt
00:00:36]} Nc6 {[%clk 00:04:35]} {[%emt 00:00:29]} 7. c4 {[%clk 00:04:11]}
{[%emt 00:00:20]} Nf6 {[%clk 00:03:55]} {[%emt 00:00:43]} 8. Be2 {[%clk
00:03:40]} {[%emt 00:00:34]} cxd4 {[%clk 00:03:52]} {[%emt 00:00:05]} 9. exd4
{[%clk 00:03:26]} {[%emt 00:00:17]} Bb4+ {[%clk 00:03:52]} {[%emt 00:00:02]} 10.
Kf1 {[%clk 00:03:26]} {[%emt 00:00:01]} O-O {[%clk 00:03:37]} {[%emt 00:00:18]}
11. a3 {[%clk 00:03:26]} {[%emt 00:00:02]} Be7 {[%clk 00:03:37]} {[%emt
00:00:01]} 12. Nc3 {[%clk 00:03:22]} {[%emt 00:00:07]} d5 {[%clk 00:03:28]}
{[%emt 00:00:12]} 13. c5 {[%clk 00:03:20]} {[%emt 00:00:05]} Qd8 {[%clk
00:03:28]} {[%emt 00:00:01]} 14. b4 {[%clk 00:03:10]} {[%emt 00:00:13]} Ne4
{[%clk 00:03:03]} {[%emt 00:00:28]} 15. Qc2 {[%clk 00:03:03]} {[%emt 00:00:10]}
f5 {[%clk 00:02:59]} {[%emt 00:00:08]} 16. Be5 {[%clk 00:02:53]} {[%emt
00:00:13]} Bf6 {[%clk 00:02:45]} {[%emt 00:00:17]} 17. Rd1 {[%clk 00:02:14]}
{[%emt 00:00:42]} Bd7 {[%clk 00:02:45]} {[%emt 00:00:03]} 18. b5 {[%clk
00:02:07]} {[%emt 00:00:10]} Ne7 {[%clk 00:02:32]} {[%emt 00:00:16]} 19. Bxf6
{[%clk 00:01:54]} {[%emt 00:00:16]} gxf6 {[%clk 00:02:32]} {[%emt 00:00:01]} 20.
a4 {[%clk 00:01:50]} {[%emt 00:00:08]} Qa5 {[%clk 00:02:25]} {[%emt 00:00:09]}
21. Rd3 {[%clk 00:01:45]} {[%emt 00:00:08]} a6 {[%clk 00:02:13]} {[%emt
00:00:15]} 22. b6 {[%clk 00:01:17]} {[%emt 00:00:31]} Nxc3 {[%clk 00:02:10]}
{[%emt 00:00:05]} 23. Rxc3 {[%clk 00:01:10]} {[%emt 00:00:10]} Qxa4 {[%clk
00:02:09]} {[%emt 00:00:04]} 24. Qc1 {[%emt 00:00:17]} Bb5 {[%clk 00:02:05]}
{[%emt 00:00:07]} 25. Rg1 {[%clk 00:00:51]} {[%emt 00:00:08]} Kh8 {[%clk
00:01:30]} {[%emt 00:00:38]} 26. g4 {[%clk 00:00:44]} {[%emt 00:00:10]} fxg4
{[%clk 00:01:28]} {[%emt 00:00:05]} 27. Rxg4 {[%clk 00:00:44]} {[%emt
00:00:02]} Nf5 {[%clk 00:01:28]} {[%emt 00:00:02]} 28. Nh4 {[%clk 00:00:30]}
{[%emt 00:00:16]} Rg8 {[%clk 00:01:09]} {[%emt 00:00:22]} 29. Nxf5 {[%clk
00:00:17]} {[%emt 00:00:17]} exf5 {[%clk 00:01:09]} {[%emt 00:00:02]} 30. Rh4
{[%clk 00:00:17]} Rg7 {[%clk 00:01:06]} {[%emt 00:00:06]} 31. Rch3 {[%clk
00:00:16]} {[%emt 00:00:04]} Rag8 {[%clk 00:01:02]} {[%emt 00:00:07]} 32. Rg3
{[%clk 00:00:11]} {[%emt 00:00:08]} Rg6 {[%clk 00:00:48]} {[%emt 00:00:17]} 33.
Bxb5 {[%clk 00:00:09]} {[%emt 00:00:05]} Qxb5+ {[%clk 00:00:48]} {[%emt
00:00:01]} 34. Kg1 {[%clk 00:00:09]} {[%emt 00:00:01]} Qe2 {[%clk 00:00:47]}
{[%emt 00:00:04]} 35. Qf4 {[%clk 00:00:07]} {[%emt 00:00:05]} Qe4 {[%clk
00:00:38]} {[%emt 00:00:12]} 36. Qxe4 {[%clk 00:00:05]} {[%emt 00:00:05]} fxe4
{[%clk 00:00:38]} 37. Kf1 {[%clk 00:00:05]} {[%emt 00:00:02]} Kg7 {[%clk
00:00:36]} {[%emt 00:00:05]} 38. Rgh3 {[%clk 00:00:05]} h6 {[%clk 00:00:34]}
{[%emt 00:00:05]} 39. Rf4 {[%clk 00:00:05]} Kf7 {[%clk 00:00:33]} {[%emt
00:00:05]} 40. Rc3 {[%clk 00:00:05]} {[%emt 00:00:02]} Rc8 {[%clk 00:00:33]}
{[%emt 00:00:03]} 41. Ke2 {[%clk 00:00:05]} {[%emt 00:00:02]} Ke6 {[%clk
00:00:33]} 42. Rh4 {[%clk 00:00:05]} {[%emt 00:00:01]} f5 {[%clk 00:00:33]} 43.
Rhh3 {[%clk 00:00:05]} f4 {[%clk 00:00:33]} {[%emt 00:00:02]} 44. Rh5 {[%clk
00:00:05]} {[%emt 00:00:02]} f3+ {[%clk 00:00:20]} {[%emt 00:00:16]} 45. Kd2
{[%clk 00:00:05]} Rd8 {[%clk 00:00:16]} {[%emt 00:00:08]} 46. Re5+ {[%clk
00:00:05]} {[%emt 00:00:01]} Kf7 {[%clk 00:00:16]} 47. Rh5 {[%clk 00:00:05]}
{[%emt 00:00:03]} Kg7 {[%clk 00:00:16]} {[%emt 00:00:02]} 48. Re5 {[%clk
00:00:05]} Kf7 {[%clk 00:00:16]} {[%emt 00:00:02]} 49. Rh5 {[%clk 00:00:05]}
{[%emt 00:00:01]} Rg2 {[%clk 00:00:16]} {[%emt 00:00:01]} 50. Ke3 {[%clk
00:00:05]} {[%emt 00:00:01]} Rg1 {[%clk 00:00:16]} 51. Kf4 {[%clk 00:00:05]}
{[%emt 00:00:01]} Kg7 {[%clk 00:00:14]} {[%emt 00:00:04]} 52. c6 {[%clk
00:00:05]} {[%emt 00:00:01]} bxc6 {[%clk 00:00:14]} {[%emt 00:00:02]} 53. Rxc6
{[%clk 00:00:05]} Rf8+ {[%clk 00:00:14]} {[%emt 00:00:02]} 54. Ke5 {[%clk
00:00:05]} e3 {[%clk 00:00:14]} {[%emt 00:00:01]} 55. fxe3 {[%clk 00:00:05]}
{[%emt 00:00:03]} f2 {[%clk 00:00:14]} {[%emt 00:00:01]} 56. Rc7+ {[%clk
00:00:05]} {[%emt 00:00:01]} Kg6 {[%clk 00:00:14]} {[%emt 00:00:02]} 57. Rxh6+
{[%clk 00:00:04]} {[%emt 00:00:04]} Kxh6 {[%emt 00:00:01]} 58. b7 f1=Q {[%emt
00:00:02]} 59. Rc8 Rg5+ {[%clk 00:00:12]} {[%emt 00:00:05]} 60. Kd6 {[%clk
00:00:04]} {[%emt 00:00:01]} Qf6+ {[%emt 00:00:02]} 61. Kc5 Qe7+ {[%clk
00:00:12]} {[%emt 00:00:03]} 62. Kb6 {[%clk 00:00:04]} {[%emt 00:00:01]} Rg6+
{[%clk 00:00:12]} {[%emt 00:00:01]} 63. Ka7 {[%clk 00:00:04]} Rxc8 {[%clk
00:00:12]} {[%emt 00:00:02]} 64. h4 {[%clk 00:00:04]} {[%emt 00:00:01]} Qc7
{[%clk 00:00:11]} {[%emt 00:00:04]} 65. h5 {[%clk 00:00:04]} {[%emt 00:00:02]}
Qb8# {[%clk 00:00:11]} 0-1